{"text_format":"1","workbook":"xlsx","n_sheets":2,"sheets":["OBIETTIVI","GRIGLIA"],"not_rendered":{"charts":0,"images":5,"macros":1,"external_links":0,"defined_names":16,"comments":0,"pivot_tables":0},"unopened":[],"bounds":{"document_bytes":16777216,"sheet_cells":100000,"rows_first":2000,"rows_last":500,"rows_between":2000,"halvings":0,"cell_chars":16384,"cell_head_chars":4096},"cells_cut":0,"cells_raw":0,"read":"whole","date_system":"1900"}

{"sheet":"OBIETTIVI","index":0,"n_rows":119,"n_cols":30,"rows_kept":119,"cut":false,"hidden":false,"merged":[[12,19,12,28],[8,2,9,3],[8,4,9,5],[8,6,9,7],[0,18,0,28],[1,18,1,28],[13,18,19,18],[112,18,118,18],[102,18,111,18],[95,18,101,18],[80,18,94,18],[67,18,79,18],[60,18,66,18],[49,18,59,18],[40,18,48,18],[20,18,39,18],[11,1,11,16],[0,0,1,7],[2,0,3,1],[2,2,3,3],[2,4,3,5],[2,6,3,7],[4,0,5,1],[4,2,5,3],[4,4,5,5],[4,6,5,7],[6,0,7,1],[0,9,1,16],[6,2,7,3],[6,4,7,5],[6,6,7,7],[8,0,9,1],[7,18,7,28],[8,18,8,28],[9,18,9,28],[2,18,2,28],[3,18,3,28],[4,18,4,28],[5,18,5,28],[6,18,6,28]]}
["GRIGLIA",null,null,null,null,null,null,null,null,"MAPPA",null,null,null,null,null,null,null,null,"SULTANATO DEI MAMELUCCHI",null,null,null,null,null,null,null,null,null,null,{"$f":"SUM(R14:R20)","v":7}]
[null,null,null,null,null,null,null,null,null,null,null,null,null,null,null,null,null,null,"BASILEIA TON ROMAION",null,null,null,null,null,null,null,null,null,null,{"$f":"SUM(R21:R39)","v":19}]
["D4",null,"C4",null,"B4",null,"A4",null,null,null,null,null,null,null,null,null,null,null,"KHANATO ORDA D'ORO",null,null,null,null,null,null,null,null,null,null,{"$f":"SUM(R40:R49)","v":10}]
[null,null,null,null,null,null,null,null,null,null,null,null,null,null,null,null,null,null,"REGNO DI UNGHERIA",null,null,null,null,null,null,null,null,null,null,{"$f":"SUM(R50:R60)","v":11}]
["D3",null,"C3",null,"B3",null,"A3",null,null,null,null,null,null,null,null,null,null,null,"REPUBBLICA DI NOVGOROD",null,null,null,null,null,null,null,null,null,null,{"$f":"SUM(R61:R67)","v":7}]
[null,null,null,null,null,null,null,null,null,null,null,null,null,null,null,null,null,null,"SACRO ROMANO IMPERO",null,null,null,null,null,null,null,null,null,null,{"$f":"SUM(R68:R80)","v":13}]
["D2",null,"C2",null,"B2",null,"A2",null,null,null,null,null,null,null,null,null,null,null,"SULTANATO DEGLI HAFSIDI",null,null,null,null,null,null,null,null,null,null,{"$f":"SUM(R81:R95)","v":15}]
[null,null,null,null,null,null,null,null,null,null,null,null,null,null,null,null,null,null,"CORONA DI CASTIGLIA",null,null,null,null,null,null,null,null,null,null,{"$f":"SUM(R96:R102)","v":7}]
["D1",null,"C1",null,"B1",null,"A1",null,null,null,null,null,null,null,null,null,null,null,"REGNO DI FRANCIA",null,null,null,null,null,null,null,null,null,null,{"$f":"SUM(R103:R112)","v":10}]
[null,null,null,null,null,null,null,null,null,null,null,null,null,null,null,null,null,null,"REGNO DI INGHILTERRA",null,null,null,null,null,null,null,null,null,null,{"$f":"SUM(R113:R119)","v":7}]
[]
[null,"ZONE",null,null,null,null,null,null,null,null,null,null,null,null,null,null,null,"FILTRO"]
["N°","A1","A2","A3","A4","B1","B2","B3","B4","C1","C2","C3","C4","D1","D2","D3","D4","SI",null,"CONTEGGIO CARTE",null,null,null,null,null,null,null,null,null,"TOT"]
[1,"A1","A2",null,null,"B1",null,null,null,null,null,null,null,null,null,null,null,{"$f":"IF(AND(Tabella1[[#This Row],[A1]]=$G$9,Tabella1[[#This Row],[A2]]=$G$7,Tabella1[[#This Row],[B1]]=$E$9),1,\"\")","v":1},"SULTANATO DEI MAMELUCCHI",1,1,1,1,1,null,null,null,null,null,{"$f":"SUM(T14:AA14)","v":5}]
[2,"A1","A2","A3",null,"B1",null,null,null,null,null,null,null,null,null,null,null,{"$f":"IF(AND(Tabella1[[#This Row],[A1]]=$G$9,Tabella1[[#This Row],[A2]]=$G$7,Tabella1[[#This Row],[A3]]=$G$5,Tabella1[[#This Row],[B1]]=$E$9),1,\"\")","v":1},null,1,1,1,1,null,null,null,null,null,null,{"$f":"SUM(T15:AA15)","v":4}]
[3,"A1","A2",null,null,"B1","B2",null,null,null,null,null,null,null,null,null,null,{"$f":"IF(AND(Tabella1[[#This Row],[A1]]=$G$9,Tabella1[[#This Row],[A2]]=$G$7,Tabella1[[#This Row],[B1]]=$E$9,Tabella1[[#This Row],[B2]]=$E$7),1,\"\")","v":1},null,1,1,1,1,1,null,null,null,null,null,{"$f":"SUM(T16:AA16)","v":5}]
[4,"A1","A2",null,null,"B1","B2",null,null,"C1",null,null,null,null,null,null,null,{"$f":"IF(AND(Tabella1[[#This Row],[A1]]=$G$9,Tabella1[[#This Row],[A2]]=$G$7,Tabella1[[#This Row],[B1]]=$E$9,Tabella1[[#This Row],[B2]]=$E$7,Tabella1[[#This Row],[C1]]=$C$9),1,\"\")","v":1},null,1,1,1,null,null,null,null,null,null,null,{"$f":"SUM(T17:AA17)","v":3}]
[5,"A1","A2",null,null,"B1","B2",null,null,"C1",null,null,null,null,null,null,null,{"$f":"IF(AND(Tabella1[[#This Row],[A1]]=$G$9,Tabella1[[#This Row],[A2]]=$G$7,Tabella1[[#This Row],[B1]]=$E$9,Tabella1[[#This Row],[B2]]=$E$7,Tabella1[[#This Row],[C1]]=$C$9),1,\"\")","v":1},null,1,1,1,1,null,null,null,null,null,null,{"$f":"SUM(T18:AA18)","v":4}]
[6,"A1","A2","A3",null,"B1",null,null,null,"C1",null,null,null,null,null,null,null,{"$f":"IF(AND(Tabella1[[#This Row],[A1]]=$G$9,Tabella1[[#This Row],[A2]]=$G$7,Tabella1[[#This Row],[A3]]=$G$5,Tabella1[[#This Row],[B1]]=$E$9,Tabella1[[#This Row],[C1]]=$C$9),1,\"\")","v":1},null,1,1,1,1,null,null,null,null,null,null,{"$f":"SUM(T19:AA19)","v":4}]
[7,"A1","A2","A3",null,"B1","B2",null,null,null,null,null,null,null,null,null,null,{"$f":"IF(AND(Tabella1[[#This Row],[A1]]=$G$9,Tabella1[[#This Row],[A2]]=$G$7,Tabella1[[#This Row],[A3]]=$G$5,Tabella1[[#This Row],[B1]]=$E$9,Tabella1[[#This Row],[B2]]=$E$7),1,\"\")","v":1},null,1,1,1,1,1,null,null,null,null,null,{"$f":"SUM(T20:AA20)","v":5}]
[8,"A1","A2",null,null,"B1","B2",null,null,null,null,null,null,null,null,null,null,{"$f":"IF(AND(Tabella1[[#This Row],[A1]]=$G$9,Tabella1[[#This Row],[A2]]=$G$7,Tabella1[[#This Row],[B1]]=$E$9,Tabella1[[#This Row],[B2]]=$E$7),1,\"\")","v":1},"BASILEIA TON ROMAION",1,1,1,1,1,null,null,null,null,null,{"$f":"SUM(T21:AA21)","v":5}]
[9,"A1","A2",null,null,"B1","B2",null,null,null,null,null,null,null,null,null,null,{"$f":"IF(AND(Tabella1[[#This Row],[A1]]=$G$9,Tabella1[[#This Row],[A2]]=$G$7,Tabella1[[#This Row],[B1]]=$E$9,Tabella1[[#This Row],[B2]]=$E$7),1,\"\")","v":1},null,1,1,1,1,null,null,null,null,null,null,{"$f":"SUM(T22:AA22)","v":4}]
[10,null,"A2",null,null,"B1","B2",null,null,"C1","C2",null,null,null,null,null,null,{"$f":"IF(AND(Tabella1[[#This Row],[A2]]=$G$7,Tabella1[[#This Row],[B1]]=$E$9,Tabella1[[#This Row],[B2]]=$E$7,Tabella1[[#This Row],[C1]]=$C$9,Tabella1[[#This Row],[C2]]=$C$7),1,\"\")","v":1},null,1,1,1,1,null,null,null,null,null,null,{"$f":"SUM(T23:AA23)","v":4}]
[11,null,"A2",null,null,"B1","B2","B3",null,null,"C2",null,null,null,null,null,null,{"$f":"IF(AND(Tabella1[[#This Row],[A2]]=$G$7,Tabella1[[#This Row],[B1]]=$E$9,Tabella1[[#This Row],[B2]]=$E$7,Tabella1[[#This Row],[B3]]=$E$5,Tabella1[[#This Row],[C2]]=$C$7),1,\"\")","v":1},null,1,1,1,null,null,null,null,null,null,null,{"$f":"SUM(T24:AA24)","v":3}]
[12,null,"A2","A3",null,"B1","B2","B3",null,null,null,null,null,null,null,null,null,{"$f":"IF(AND(Tabella1[[#This Row],[A2]]=$G$7,Tabella1[[#This Row],[A3]]=$G$5,Tabella1[[#This Row],[B1]]=$E$9,Tabella1[[#This Row],[B2]]=$E$7,Tabella1[[#This Row],[B3]]=$E$5),1,\"\")","v":1},null,1,1,1,1,1,null,null,null,null,null,{"$f":"SUM(T25:AA25)","v":5}]
[13,null,"A2","A3",null,"B1","B2","B3",null,null,null,null,null,null,null,null,null,{"$f":"IF(AND(Tabella1[[#This Row],[A2]]=$G$7,Tabella1[[#This Row],[A3]]=$G$5,Tabella1[[#This Row],[B1]]=$E$9,Tabella1[[#This Row],[B2]]=$E$7,Tabella1[[#This Row],[B3]]=$E$5),1,\"\")","v":1},null,1,1,1,1,null,null,null,null,null,null,{"$f":"SUM(T26:AA26)","v":4}]
[14,"A1","A2","A3",null,"B1","B2",null,null,null,null,null,null,null,null,null,null,{"$f":"IF(AND(Tabella1[[#This Row],[A1]]=$G$9,Tabella1[[#This Row],[A2]]=$G$7,Tabella1[[#This Row],[A3]]=$G$5,Tabella1[[#This Row],[B1]]=$E$9,Tabella1[[#This Row],[B2]]=$E$7),1,\"\")","v":1},null,1,1,1,1,null,null,null,null,null,null,{"$f":"SUM(T27:AA27)","v":4}]
[15,null,"A2","A3",null,null,"B2",null,null,null,null,null,null,null,null,null,null,{"$f":"IF(AND(Tabella1[[#This Row],[A2]]=$G$7,Tabella1[[#This Row],[A3]]=$G$5,Tabella1[[#This Row],[B2]]=$E$7),1,\"\")","v":1},null,1,1,1,1,null,null,null,null,null,null,{"$f":"SUM(T28:AA28)","v":4}]
[16,null,"A2","A3",null,null,"B2",null,null,null,null,null,null,null,null,null,null,{"$f":"IF(AND(Tabella1[[#This Row],[A2]]=$G$7,Tabella1[[#This Row],[A3]]=$G$5,Tabella1[[#This Row],[B2]]=$E$7),1,\"\")","v":1},null,1,1,1,null,null,null,null,null,null,null,{"$f":"SUM(T29:AA29)","v":3}]
[17,null,"A2",null,null,null,"B2",null,null,null,null,null,null,null,null,null,null,{"$f":"IF(AND(Tabella1[[#This Row],[A2]]=$G$7,Tabella1[[#This Row],[B2]]=$E$7),1,\"\")","v":1},null,1,1,1,1,null,null,null,null,null,null,{"$f":"SUM(T30:AA30)","v":4}]
[18,null,"A2","A3",null,null,"B2","B3",null,null,null,null,null,null,null,null,null,{"$f":"IF(AND(Tabella1[[#This Row],[A2]]=$G$7,Tabella1[[#This Row],[A3]]=$G$5,Tabella1[[#This Row],[B2]]=$E$7,Tabella1[[#This Row],[B3]]=$E$5),1,\"\")","v":1},null,1,1,1,1,null,null,null,null,null,null,{"$f":"SUM(T31:AA31)","v":4}]
[19,null,"A2","A3",null,null,"B2","B3",null,null,null,null,null,null,null,null,null,{"$f":"IF(AND(Tabella1[[#This Row],[A2]]=$G$7,Tabella1[[#This Row],[A3]]=$G$5,Tabella1[[#This Row],[B2]]=$E$7,Tabella1[[#This Row],[B3]]=$E$5),1,\"\")","v":1},null,1,1,1,1,null,null,null,null,null,null,{"$f":"SUM(T32:AA32)","v":4}]
[20,null,null,null,null,"B1","B2","B3",null,"C1",null,null,null,null,null,null,null,{"$f":"IF(AND(Tabella1[[#This Row],[B1]]=$E$9,Tabella1[[#This Row],[B2]]=$E$7,Tabella1[[#This Row],[B3]]=$E$5,Tabella1[[#This Row],[C1]]=$C$9),1,\"\")","v":1},null,1,null,null,null,null,null,null,null,null,null,{"$f":"SUM(T33:AA33)","v":1}]
[21,null,null,null,null,null,"B2","B3",null,null,null,null,null,null,null,null,null,{"$f":"IF(AND(Tabella1[[#This Row],[B2]]=$E$7,Tabella1[[#This Row],[B3]]=$E$5),1,\"\")","v":1},null,1,1,1,null,null,null,null,null,null,null,{"$f":"SUM(T34:AA34)","v":3}]
[22,null,null,null,null,null,"B2",null,null,null,"C2",null,null,null,null,null,null,{"$f":"IF(AND(Tabella1[[#This Row],[B2]]=$E$7,Tabella1[[#This Row],[C2]]=$C$7),1,\"\")","v":1},null,1,1,null,null,null,null,null,null,null,null,{"$f":"SUM(T35:AA35)","v":2}]
[23,null,null,null,null,"B1","B2","B3",null,null,null,null,null,null,null,null,null,{"$f":"IF(AND(Tabella1[[#This Row],[B1]]=$E$9,Tabella1[[#This Row],[B2]]=$E$7,Tabella1[[#This Row],[B3]]=$E$5),1,\"\")","v":1},null,1,null,null,null,null,null,null,null,null,null,{"$f":"SUM(T36:AA36)","v":1}]
[24,null,null,null,null,null,"B2","B3",null,null,"C2",null,null,null,null,null,null,{"$f":"IF(AND(Tabella1[[#This Row],[B2]]=$E$7,Tabella1[[#This Row],[B3]]=$E$5,Tabella1[[#This Row],[C2]]=$C$7),1,\"\")","v":1},null,1,1,null,null,null,null,null,null,null,null,{"$f":"SUM(T37:AA37)","v":2}]
[25,null,null,null,null,null,"B2","B3",null,null,null,null,null,null,null,null,null,{"$f":"IF(AND(Tabella1[[#This Row],[B2]]=$E$7,Tabella1[[#This Row],[B3]]=$E$5),1,\"\")","v":1},null,1,1,null,null,null,null,null,null,null,null,{"$f":"SUM(T38:AA38)","v":2}]
[26,null,null,null,null,"B1","B2","B3",null,null,"C2",null,null,null,null,null,null,{"$f":"IF(AND(Tabella1[[#This Row],[B1]]=$E$9,Tabella1[[#This Row],[B2]]=$E$7,Tabella1[[#This Row],[B3]]=$E$5,Tabella1[[#This Row],[C2]]=$C$7),1,\"\")","v":1},null,1,null,null,null,null,null,null,null,null,null,{"$f":"SUM(T39:AA39)","v":1}]
[27,null,null,null,null,"B1","B2",null,null,"C1","C2",null,null,null,null,null,null,{"$f":"IF(AND(Tabella1[[#This Row],[B1]]=$E$9,Tabella1[[#This Row],[B2]]=$E$7,Tabella1[[#This Row],[C1]]=$C$9,Tabella1[[#This Row],[C2]]=$C$7),1,\"\")","v":1},null,1,null,null,null,null,null,null,null,null,null,{"$f":"SUM(T40:AA40)","v":1}]
[28,null,null,"A3","A4",null,null,"B3","B4",null,null,null,null,null,null,null,null,{"$f":"IF(AND(Tabella1[[#This Row],[A3]]=$G$5,Tabella1[[#This Row],[A4]]=$G$3,Tabella1[[#This Row],[B3]]=$E$5,Tabella1[[#This Row],[B4]]=$E$3),1,\"\")","v":1},"KHANATO ORDA D'ORO",1,1,1,1,1,null,null,null,null,null,{"$f":"SUM(T41:AA41)","v":5}]
[29,null,"A2","A3",null,null,"B2","B3",null,null,null,null,null,null,null,null,null,{"$f":"IF(AND(Tabella1[[#This Row],[A2]]=$G$7,Tabella1[[#This Row],[A3]]=$G$5,Tabella1[[#This Row],[B2]]=$E$7,Tabella1[[#This Row],[B3]]=$E$5),1,\"\")","v":1},null,1,1,1,1,1,1,null,null,null,null,{"$f":"SUM(T42:AA42)","v":6}]
[30,null,null,"A3","A4",null,null,"B3","B4",null,null,null,null,null,null,null,null,{"$f":"IF(AND(Tabella1[[#This Row],[A3]]=$G$5,Tabella1[[#This Row],[A4]]=$G$3,Tabella1[[#This Row],[B3]]=$E$5,Tabella1[[#This Row],[B4]]=$E$3),1,\"\")","v":1},null,1,1,1,1,null,null,null,null,null,null,{"$f":"SUM(T43:AA43)","v":4}]
[31,"A1","A2","A3",null,null,null,"B3",null,null,null,null,null,null,null,null,null,{"$f":"IF(AND(Tabella1[[#This Row],[A1]]=$G$9,Tabella1[[#This Row],[A2]]=$G$7,Tabella1[[#This Row],[A3]]=$G$5,Tabella1[[#This Row],[B3]]=$E$5),1,\"\")","v":1},null,1,1,1,1,null,null,null,null,null,null,{"$f":"SUM(T44:AA44)","v":4}]
[32,null,null,"A3",null,null,"B2","B3",null,null,null,null,null,null,null,null,null,{"$f":"IF(AND(Tabella1[[#This Row],[A3]]=$G$5,Tabella1[[#This Row],[B2]]=$E$7,Tabella1[[#This Row],[B3]]=$E$5),1,\"\")","v":1},null,1,1,1,1,1,1,1,null,null,null,{"$f":"SUM(T45:AA45)","v":7}]
[33,"A1","A2","A3",null,null,"B2","B3",null,null,null,null,null,null,null,null,null,{"$f":"IF(AND(Tabella1[[#This Row],[A1]]=$G$9,Tabella1[[#This Row],[A2]]=$G$7,Tabella1[[#This Row],[A3]]=$G$5,Tabella1[[#This Row],[B2]]=$E$7,Tabella1[[#This Row],[B3]]=$E$5),1,\"\")","v":1},null,1,1,1,1,null,null,null,null,null,null,{"$f":"SUM(T46:AA46)","v":4}]
[34,null,"A2","A3",null,null,null,"B3",null,null,null,null,null,null,null,null,null,{"$f":"IF(AND(Tabella1[[#This Row],[A2]]=$G$7,Tabella1[[#This Row],[A3]]=$G$5,Tabella1[[#This Row],[B3]]=$E$5),1,\"\")","v":1},null,1,1,1,1,1,1,null,null,null,null,{"$f":"SUM(T47:AA47)","v":6}]
[35,null,null,"A3",null,null,null,"B3",null,null,null,null,null,null,null,null,null,{"$f":"IF(AND(Tabella1[[#This Row],[A3]]=$G$5,Tabella1[[#This Row],[B3]]=$E$5),1,\"\")","v":1},null,1,1,1,null,null,null,null,null,null,null,{"$f":"SUM(T48:AA48)","v":3}]
[36,null,"A2","A3",null,null,"B2","B3",null,null,null,null,null,null,null,null,null,{"$f":"IF(AND(Tabella1[[#This Row],[A2]]=$G$7,Tabella1[[#This Row],[A3]]=$G$5,Tabella1[[#This Row],[B2]]=$E$7,Tabella1[[#This Row],[B3]]=$E$5),1,\"\")","v":1},null,1,1,1,1,1,1,1,1,null,null,{"$f":"SUM(T49:AA49)","v":8}]
[37,null,null,null,null,null,"B2","B3",null,null,"C2",null,null,null,null,null,null,{"$f":"IF(AND(Tabella1[[#This Row],[B2]]=$E$7,Tabella1[[#This Row],[B3]]=$E$5,Tabella1[[#This Row],[C2]]=$C$7),1,\"\")","v":1},"REGNO DI UNGHERIA",1,1,1,1,1,1,null,null,null,null,{"$f":"SUM(T50:AA50)","v":6}]
[38,null,null,"A3",null,null,"B2","B3",null,null,null,null,null,null,null,null,null,{"$f":"IF(AND(Tabella1[[#This Row],[A3]]=$G$5,Tabella1[[#This Row],[B2]]=$E$7,Tabella1[[#This Row],[B3]]=$E$5),1,\"\")","v":1},null,1,1,1,1,1,1,null,null,null,null,{"$f":"SUM(T51:AA51)","v":6}]
[39,null,null,null,null,null,"B2","B3",null,null,"C2","C3",null,null,null,null,null,{"$f":"IF(AND(Tabella1[[#This Row],[B2]]=$E$7,Tabella1[[#This Row],[B3]]=$E$5,Tabella1[[#This Row],[C2]]=$C$7,Tabella1[[#This Row],[C3]]=$C$5),1,\"\")","v":1},null,1,1,1,1,1,1,1,null,null,null,{"$f":"SUM(T52:AA52)","v":7}]
[40,null,null,null,null,null,"B2","B3","B4",null,null,"C3","C4",null,null,null,null,{"$f":"IF(AND(Tabella1[[#This Row],[B2]]=$E$7,Tabella1[[#This Row],[B3]]=$E$5,Tabella1[[#This Row],[B4]]=$E$3,Tabella1[[#This Row],[C3]]=$C$5,Tabella1[[#This Row],[C4]]=$C$3),1,\"\")","v":1},null,1,1,1,1,1,null,null,null,null,null,{"$f":"SUM(T53:AA53)","v":5}]
[41,null,null,null,null,null,"B2","B3",null,null,"C2",null,null,null,null,null,null,{"$f":"IF(AND(Tabella1[[#This Row],[B2]]=$E$7,Tabella1[[#This Row],[B3]]=$E$5,Tabella1[[#This Row],[C2]]=$C$7),1,\"\")","v":1},null,1,1,1,1,1,1,null,null,null,null,{"$f":"SUM(T54:AA54)","v":6}]
[42,null,null,"A3",null,null,"B2","B3",null,null,null,null,null,null,null,null,null,{"$f":"IF(AND(Tabella1[[#This Row],[A3]]=$G$5,Tabella1[[#This Row],[B2]]=$E$7,Tabella1[[#This Row],[B3]]=$E$5),1,\"\")","v":1},null,1,1,1,1,1,1,null,null,null,null,{"$f":"SUM(T55:AA55)","v":6}]
[43,null,null,null,null,null,"B2","B3",null,null,"C2","C3",null,null,null,null,null,{"$f":"IF(AND(Tabella1[[#This Row],[B2]]=$E$7,Tabella1[[#This Row],[B3]]=$E$5,Tabella1[[#This Row],[C2]]=$C$7,Tabella1[[#This Row],[C3]]=$C$5),1,\"\")","v":1},null,1,1,1,1,1,1,null,null,null,null,{"$f":"SUM(T56:AA56)","v":6}]
[44,null,null,"A3",null,null,"B2","B3",null,null,null,null,null,null,null,null,null,{"$f":"IF(AND(Tabella1[[#This Row],[A3]]=$G$5,Tabella1[[#This Row],[B2]]=$E$7,Tabella1[[#This Row],[B3]]=$E$5),1,\"\")","v":1},null,1,1,1,null,null,null,null,null,null,null,{"$f":"SUM(T57:AA57)","v":3}]
[45,null,null,null,null,null,"B2","B3",null,null,null,null,null,null,null,null,null,{"$f":"IF(AND(Tabella1[[#This Row],[B2]]=$E$7,Tabella1[[#This Row],[B3]]=$E$5),1,\"\")","v":1},null,1,1,1,1,null,null,null,null,null,null,{"$f":"SUM(T58:AA58)","v":4}]
[46,null,null,null,null,null,"B2","B3",null,null,null,null,null,null,null,null,null,{"$f":"IF(AND(Tabella1[[#This Row],[B2]]=$E$7,Tabella1[[#This Row],[B3]]=$E$5),1,\"\")","v":1},null,1,1,1,1,null,null,null,null,null,null,{"$f":"SUM(T59:AA59)","v":4}]
[47,null,null,"A3",null,null,"B2","B3",null,null,null,null,null,null,null,null,null,{"$f":"IF(AND(Tabella1[[#This Row],[A3]]=$G$5,Tabella1[[#This Row],[B2]]=$E$7,Tabella1[[#This Row],[B3]]=$E$5),1,\"\")","v":1},null,1,1,1,1,null,null,null,null,null,null,{"$f":"SUM(T60:AA60)","v":4}]
[48,null,null,null,"A4",null,null,null,"B4",null,null,null,"C4",null,null,null,null,{"$f":"IF(AND(Tabella1[[#This Row],[A4]]=$G$3,Tabella1[[#This Row],[B4]]=$E$3,Tabella1[[#This Row],[C4]]=$C$3),1,\"\")","v":1},"REPUBBLICA DI NOVGOROD",1,1,1,null,null,null,null,null,null,null,{"$f":"SUM(T61:AA61)","v":3}]
[49,null,null,"A3","A4",null,null,"B3","B4",null,null,null,null,null,null,null,null,{"$f":"IF(AND(Tabella1[[#This Row],[A3]]=$G$5,Tabella1[[#This Row],[A4]]=$G$3,Tabella1[[#This Row],[B3]]=$E$5,Tabella1[[#This Row],[B4]]=$E$3),1,\"\")","v":1},null,1,1,1,null,null,null,null,null,null,null,{"$f":"SUM(T62:AA62)","v":3}]
[50,null,null,"A3","A4",null,null,"B3","B4",null,null,null,null,null,null,null,null,{"$f":"IF(AND(Tabella1[[#This Row],[A3]]=$G$5,Tabella1[[#This Row],[A4]]=$G$3,Tabella1[[#This Row],[B3]]=$E$5,Tabella1[[#This Row],[B4]]=$E$3),1,\"\")","v":1},null,1,1,1,null,null,null,null,null,null,null,{"$f":"SUM(T63:AA63)","v":3}]
[51,null,null,null,"A4",null,null,"B3","B4",null,null,null,"C4",null,null,null,null,{"$f":"IF(AND(Tabella1[[#This Row],[A4]]=$G$3,Tabella1[[#This Row],[B3]]=$E$5,Tabella1[[#This Row],[B4]]=$E$3,Tabella1[[#This Row],[C4]]=$C$3),1,\"\")","v":1},null,1,1,1,null,null,null,null,null,null,null,{"$f":"SUM(T64:AA64)","v":3}]
[52,null,null,null,"A4",null,null,"B3","B4",null,null,"C3","C4",null,null,null,null,{"$f":"IF(AND(Tabella1[[#This Row],[A4]]=$G$3,Tabella1[[#This Row],[B3]]=$E$5,Tabella1[[#This Row],[B4]]=$E$3,Tabella1[[#This Row],[C3]]=$C$5,Tabella1[[#This Row],[C4]]=$C$3),1,\"\")","v":1},null,1,1,1,null,null,null,null,null,null,null,{"$f":"SUM(T65:AA65)","v":3}]
[53,null,null,"A3","A4",null,null,"B3","B4",null,null,null,null,null,null,null,null,{"$f":"IF(AND(Tabella1[[#This Row],[A3]]=$G$5,Tabella1[[#This Row],[A4]]=$G$3,Tabella1[[#This Row],[B3]]=$E$5,Tabella1[[#This Row],[B4]]=$E$3),1,\"\")","v":1},null,1,1,1,1,null,null,null,null,null,null,{"$f":"SUM(T66:AA66)","v":4}]
[54,null,null,"A3","A4",null,null,"B3","B4",null,null,null,null,null,null,null,null,{"$f":"IF(AND(Tabella1[[#This Row],[A3]]=$G$5,Tabella1[[#This Row],[A4]]=$G$3,Tabella1[[#This Row],[B3]]=$E$5,Tabella1[[#This Row],[B4]]=$E$3),1,\"\")","v":1},null,1,1,1,1,1,null,null,null,null,null,{"$f":"SUM(T67:AA67)","v":5}]
[55,null,null,null,null,null,null,"B3","B4",null,null,"C3","C4",null,null,null,null,{"$f":"IF(AND(Tabella1[[#This Row],[B3]]=$E$5,Tabella1[[#This Row],[B4]]=$E$3,Tabella1[[#This Row],[C3]]=$C$5,Tabella1[[#This Row],[C4]]=$C$3),1,\"\")","v":1},"SACRO ROMANO IMPERO",1,1,1,null,null,null,null,null,null,null,{"$f":"SUM(T68:AA68)","v":3}]
[56,null,null,null,null,null,"B2","B3",null,null,"C2","C3","C4",null,null,null,null,{"$f":"IF(AND(Tabella1[[#This Row],[B2]]=$E$7,Tabella1[[#This Row],[B3]]=$E$5,Tabella1[[#This Row],[C2]]=$C$7,Tabella1[[#This Row],[C3]]=$C$5,Tabella1[[#This Row],[C4]]=$C$3),1,\"\")","v":1},null,1,1,1,null,null,null,null,null,null,null,{"$f":"SUM(T69:AA69)","v":3}]
[57,null,null,null,null,null,null,"B3",null,null,"C2","C3",null,null,null,null,null,{"$f":"IF(AND(Tabella1[[#This Row],[B3]]=$E$5,Tabella1[[#This Row],[C2]]=$C$7,Tabella1[[#This Row],[C3]]=$C$5),1,\"\")","v":1},null,1,1,1,1,1,1,1,1,null,null,{"$f":"SUM(T70:AA70)","v":8}]
[58,null,null,null,null,null,null,"B3","B4",null,null,"C3","C4",null,null,null,null,{"$f":"IF(AND(Tabella1[[#This Row],[B3]]=$E$5,Tabella1[[#This Row],[B4]]=$E$3,Tabella1[[#This Row],[C3]]=$C$5,Tabella1[[#This Row],[C4]]=$C$3),1,\"\")","v":1},null,1,1,1,1,1,1,null,null,null,null,{"$f":"SUM(T71:AA71)","v":6}]
[59,null,null,null,null,"B1","B2","B3",null,"C1","C2","C3",null,null,null,null,null,{"$f":"IF(AND(Tabella1[[#This Row],[B1]]=$E$9,Tabella1[[#This Row],[B2]]=$E$7,Tabella1[[#This Row],[B3]]=$E$5,Tabella1[[#This Row],[C1]]=$C$9,Tabella1[[#This Row],[C2]]=$C$7,Tabella1[[#This Row],[C3]]=$C$5),1,\"\")","v":1},null,1,1,1,1,null,null,null,null,null,null,{"$f":"SUM(T72:AA72)","v":4}]
[60,null,null,null,null,null,"B2","B3",null,null,"C2","C3",null,null,null,null,null,{"$f":"IF(AND(Tabella1[[#This Row],[B2]]=$E$7,Tabella1[[#This Row],[B3]]=$E$5,Tabella1[[#This Row],[C2]]=$C$7,Tabella1[[#This Row],[C3]]=$C$5),1,\"\")","v":1},null,1,1,1,1,1,1,1,1,null,null,{"$f":"SUM(T73:AA73)","v":8}]
[61,null,null,null,null,null,"B2","B3",null,null,"C2","C3",null,null,null,null,null,{"$f":"IF(AND(Tabella1[[#This Row],[B2]]=$E$7,Tabella1[[#This Row],[B3]]=$E$5,Tabella1[[#This Row],[C2]]=$C$7,Tabella1[[#This Row],[C3]]=$C$5),1,\"\")","v":1},null,1,1,1,1,1,1,null,null,null,null,{"$f":"SUM(T74:AA74)","v":6}]
[62,null,null,null,null,null,null,null,null,null,"C2","C3",null,null,null,"D3",null,{"$f":"IF(AND(Tabella1[[#This Row],[C2]]=$C$7,Tabella1[[#This Row],[C3]]=$C$5,Tabella1[[#This Row],[D3]]=$A$5),1,\"\")","v":1},null,1,1,1,1,null,null,null,null,null,null,{"$f":"SUM(T75:AA75)","v":4}]
[63,null,null,null,null,null,null,null,null,"C1","C2","C3",null,null,null,null,null,{"$f":"IF(AND(Tabella1[[#This Row],[C1]]=$C$9,Tabella1[[#This Row],[C2]]=$C$7,Tabella1[[#This Row],[C3]]=$C$5),1,\"\")","v":1},null,1,1,null,null,null,null,null,null,null,null,{"$f":"SUM(T76:AA76)","v":2}]
[64,null,null,null,null,null,null,null,null,"C1","C2","C3",null,null,"D2",null,null,{"$f":"IF(AND(Tabella1[[#This Row],[C1]]=$C$9,Tabella1[[#This Row],[C2]]=$C$7,Tabella1[[#This Row],[C3]]=$C$5,Tabella1[[#This Row],[D2]]=$A$7),1,\"\")","v":1},null,1,1,1,null,null,null,null,null,null,null,{"$f":"SUM(T77:AA77)","v":3}]
[65,null,null,null,null,null,null,"B3","B4",null,null,"C3","C4",null,null,null,null,{"$f":"IF(AND(Tabella1[[#This Row],[B3]]=$E$5,Tabella1[[#This Row],[B4]]=$E$3,Tabella1[[#This Row],[C3]]=$C$5,Tabella1[[#This Row],[C4]]=$C$3),1,\"\")","v":1},null,1,1,1,null,null,null,null,null,null,null,{"$f":"SUM(T78:AA78)","v":3}]
[66,null,null,null,null,null,null,null,null,null,"C2","C3",null,null,"D2","D3",null,{"$f":"IF(AND(Tabella1[[#This Row],[C2]]=$C$7,Tabella1[[#This Row],[C3]]=$C$5,Tabella1[[#This Row],[D2]]=$A$7,Tabella1[[#This Row],[D3]]=$A$5),1,\"\")","v":1},null,1,1,1,1,null,null,null,null,null,null,{"$f":"SUM(T79:AA79)","v":4}]
[67,null,null,null,null,null,null,null,null,null,"C2","C3",null,null,"D2","D3",null,{"$f":"IF(AND(Tabella1[[#This Row],[C2]]=$C$7,Tabella1[[#This Row],[C3]]=$C$5,Tabella1[[#This Row],[D2]]=$A$7,Tabella1[[#This Row],[D3]]=$A$5),1,\"\")","v":1},null,1,1,1,null,null,null,null,null,null,null,{"$f":"SUM(T80:AA80)","v":3}]
[68,null,null,null,null,"B1",null,null,null,"C1","C2",null,null,"D1","D2",null,null,{"$f":"IF(AND(Tabella1[[#This Row],[B1]]=$E$9,Tabella1[[#This Row],[C1]]=$C$9,Tabella1[[#This Row],[C2]]=$C$7,Tabella1[[#This Row],[D1]]=$A$9,Tabella1[[#This Row],[D2]]=$A$7),1,\"\")","v":1},"SULTANATO DEGLI HAFSIDI",1,1,null,null,null,null,null,null,null,null,{"$f":"SUM(T81:AA81)","v":2}]
[69,null,null,null,null,"B1",null,null,null,"C1","C2",null,null,"D1","D2",null,null,{"$f":"IF(AND(Tabella1[[#This Row],[B1]]=$E$9,Tabella1[[#This Row],[C1]]=$C$9,Tabella1[[#This Row],[C2]]=$C$7,Tabella1[[#This Row],[D1]]=$A$9,Tabella1[[#This Row],[D2]]=$A$7),1,\"\")","v":1},null,1,1,null,null,null,null,null,null,null,null,{"$f":"SUM(T82:AA82)","v":2}]
[70,null,null,null,null,"B1",null,null,null,"C1","C2",null,null,null,"D2",null,null,{"$f":"IF(AND(Tabella1[[#This Row],[B1]]=$E$9,Tabella1[[#This Row],[C1]]=$C$9,Tabella1[[#This Row],[C2]]=$C$7,Tabella1[[#This Row],[D2]]=$A$7),1,\"\")","v":1},null,1,1,1,null,null,null,null,null,null,null,{"$f":"SUM(T83:AA83)","v":3}]
[71,null,null,null,null,"B1",null,null,null,"C1","C2",null,null,"D1","D2",null,null,{"$f":"IF(AND(Tabella1[[#This Row],[B1]]=$E$9,Tabella1[[#This Row],[C1]]=$C$9,Tabella1[[#This Row],[C2]]=$C$7,Tabella1[[#This Row],[D1]]=$A$9,Tabella1[[#This Row],[D2]]=$A$7),1,\"\")","v":1},null,1,1,1,null,null,null,null,null,null,null,{"$f":"SUM(T84:AA84)","v":3}]
[72,"A1",null,null,null,"B1","B2",null,null,"C1","C2",null,null,"D1",null,null,null,{"$f":"IF(AND(Tabella1[[#This Row],[A1]]=$G$9,Tabella1[[#This Row],[B1]]=$E$9,Tabella1[[#This Row],[B2]]=$E$7,Tabella1[[#This Row],[C1]]=$C$9,Tabella1[[#This Row],[C2]]=$C$7,Tabella1[[#This Row],[D1]]=$A$9),1,\"\")","v":1},null,1,1,null,null,null,null,null,null,null,null,{"$f":"SUM(T85:AA85)","v":2}]
[73,null,null,null,null,"B1","B2",null,null,"C1","C2",null,null,"D1",null,null,null,{"$f":"IF(AND(Tabella1[[#This Row],[B1]]=$E$9,Tabella1[[#This Row],[B2]]=$E$7,Tabella1[[#This Row],[C1]]=$C$9,Tabella1[[#This Row],[C2]]=$C$7),1,\"\")","v":1},null,1,1,1,1,null,null,null,null,null,null,{"$f":"SUM(T86:AA86)","v":4}]
[74,null,null,null,null,"B1",null,null,null,"C1",null,null,null,"D1","D2",null,null,{"$f":"IF(AND(Tabella1[[#This Row],[B1]]=$E$9,Tabella1[[#This Row],[C1]]=$C$9,Tabella1[[#This Row],[D1]]=$A$9,Tabella1[[#This Row],[D2]]=$A$7),1,\"\")","v":1},null,1,1,1,1,null,null,null,null,null,null,{"$f":"SUM(T87:AA87)","v":4}]
[75,null,null,null,null,"B1","B2",null,null,"C1","C2",null,null,null,null,null,null,{"$f":"IF(AND(Tabella1[[#This Row],[B1]]=$E$9,Tabella1[[#This Row],[B2]]=$E$7,Tabella1[[#This Row],[C1]]=$C$9,Tabella1[[#This Row],[C2]]=$C$7),1,\"\")","v":1},null,1,1,null,null,null,null,null,null,null,null,{"$f":"SUM(T88:AA88)","v":2}]
[76,null,null,null,null,null,null,null,null,"C1","C2",null,null,"D1",null,null,null,{"$f":"IF(AND(Tabella1[[#This Row],[C1]]=$C$9,Tabella1[[#This Row],[C2]]=$C$7),1,\"\")","v":1},null,1,1,null,null,null,null,null,null,null,null,{"$f":"SUM(T89:AA89)","v":2}]
[77,null,null,null,null,null,null,null,null,"C1","C2",null,null,"D1","D2",null,null,{"$f":"IF(AND(Tabella1[[#This Row],[C1]]=$C$9,Tabella1[[#This Row],[C2]]=$C$7,Tabella1[[#This Row],[D1]]=$A$9,Tabella1[[#This Row],[D2]]=$A$7),1,\"\")","v":1},null,1,1,null,null,null,null,null,null,null,null,{"$f":"SUM(T90:AA90)","v":2}]
[78,null,null,null,null,"B1","B2",null,null,"C1","C2",null,null,null,null,null,null,{"$f":"IF(AND(Tabella1[[#This Row],[B1]]=$E$9,Tabella1[[#This Row],[B2]]=$E$7,Tabella1[[#This Row],[C1]]=$C$9,Tabella1[[#This Row],[C2]]=$C$7),1,\"\")","v":1},null,1,1,null,null,null,null,null,null,null,null,{"$f":"SUM(T91:AA91)","v":2}]
[79,null,null,null,null,null,null,null,null,"C1","C2",null,null,"D1","D2",null,null,{"$f":"IF(AND(Tabella1[[#This Row],[C1]]=$C$9,Tabella1[[#This Row],[C2]]=$C$7,Tabella1[[#This Row],[D1]]=$A$9,Tabella1[[#This Row],[D2]]=$A$7),1,\"\")","v":1},null,1,1,null,null,null,null,null,null,null,null,{"$f":"SUM(T92:AA92)","v":2}]
[80,null,null,null,null,"B1","B2",null,null,"C1",null,null,null,null,null,null,null,{"$f":"IF(AND(Tabella1[[#This Row],[B1]]=$E$9,Tabella1[[#This Row],[B2]]=$E$7,Tabella1[[#This Row],[C1]]=$C$9),1,\"\")","v":1},null,1,1,null,null,null,null,null,null,null,null,{"$f":"SUM(T93:AA93)","v":2}]
[81,null,null,null,null,"B1",null,null,null,"C1","C2",null,null,null,null,null,null,{"$f":"IF(AND(Tabella1[[#This Row],[B1]]=$E$9,Tabella1[[#This Row],[C1]]=$C$9,Tabella1[[#This Row],[C2]]=$C$7),1,\"\")","v":1},null,1,1,1,null,null,null,null,null,null,null,{"$f":"SUM(T94:AA94)","v":3}]
[82,null,null,null,null,null,null,null,null,"C1","C2","C3",null,"D1","D2",null,null,{"$f":"IF(AND(Tabella1[[#This Row],[C1]]=$C$9,Tabella1[[#This Row],[C2]]=$C$7,Tabella1[[#This Row],[C3]]=$C$5,Tabella1[[#This Row],[D1]]=$A$9,Tabella1[[#This Row],[D2]]=$A$7),1,\"\")","v":1},null,1,1,null,null,null,null,null,null,null,null,{"$f":"SUM(T95:AA95)","v":2}]
[83,null,null,null,null,null,null,null,null,null,"C2",null,null,"D1","D2",null,null,{"$f":"IF(AND(Tabella1[[#This Row],[C2]]=$C$7,Tabella1[[#This Row],[D1]]=$A$9,Tabella1[[#This Row],[D2]]=$A$7),1,\"\")","v":1},"CORONA DI CASTIGLIA",1,1,1,1,null,null,null,null,null,null,{"$f":"SUM(T96:AA96)","v":4}]
[84,null,null,null,null,null,"B2",null,null,"C1","C2",null,null,null,"D2",null,null,{"$f":"IF(AND(Tabella1[[#This Row],[B2]]=$E$7,Tabella1[[#This Row],[C1]]=$C$9,Tabella1[[#This Row],[C2]]=$C$7,Tabella1[[#This Row],[D2]]=$A$7),1,\"\")","v":1},null,1,1,1,1,null,null,null,null,null,null,{"$f":"SUM(T97:AA97)","v":4}]
[85,null,null,null,null,null,null,null,null,"C1","C2",null,null,"D1","D2",null,null,{"$f":"IF(AND(Tabella1[[#This Row],[C1]]=$C$9,Tabella1[[#This Row],[C2]]=$C$7,Tabella1[[#This Row],[D1]]=$A$9,Tabella1[[#This Row],[D2]]=$A$7),1,\"\")","v":1},null,1,1,1,1,1,1,null,null,null,null,{"$f":"SUM(T98:AA98)","v":6}]
[86,null,null,null,null,null,null,null,null,null,"C2","C3",null,null,"D2",null,null,{"$f":"IF(AND(Tabella1[[#This Row],[C2]]=$C$7,Tabella1[[#This Row],[C3]]=$C$5,Tabella1[[#This Row],[D2]]=$A$7),1,\"\")","v":1},null,1,1,1,1,1,1,1,1,null,null,{"$f":"SUM(T99:AA99)","v":8}]
[87,null,null,null,null,null,null,null,null,null,"C2",null,null,"D1","D2",null,null,{"$f":"IF(AND(Tabella1[[#This Row],[C2]]=$C$7,Tabella1[[#This Row],[D1]]=$A$9,Tabella1[[#This Row],[D2]]=$A$7),1,\"\")","v":1},null,1,1,1,1,1,null,null,null,null,null,{"$f":"SUM(T100:AA100)","v":5}]
[88,null,null,null,null,null,null,null,null,null,"C2","C3",null,null,"D2",null,null,{"$f":"IF(AND(Tabella1[[#This Row],[C2]]=$C$7,Tabella1[[#This Row],[C3]]=$C$5,Tabella1[[#This Row],[D2]]=$A$7),1,\"\")","v":1},null,1,1,1,1,1,1,1,1,null,null,{"$f":"SUM(T101:AA101)","v":8}]
[89,null,null,null,null,null,null,null,null,null,"C2","C3",null,null,"D2",null,null,{"$f":"IF(AND(Tabella1[[#This Row],[C2]]=$C$7,Tabella1[[#This Row],[C3]]=$C$5,Tabella1[[#This Row],[D2]]=$A$7),1,\"\")","v":1},null,1,1,1,1,1,1,1,1,null,null,{"$f":"SUM(T102:AA102)","v":8}]
[90,null,null,null,null,null,null,null,null,null,"C2","C3",null,null,"D2","D3",null,{"$f":"IF(AND(Tabella1[[#This Row],[C2]]=$C$7,Tabella1[[#This Row],[C3]]=$C$5,Tabella1[[#This Row],[D2]]=$A$7,Tabella1[[#This Row],[D3]]=$A$5),1,\"\")","v":1},"REGNO DI FRANCIA",1,1,1,1,1,1,null,null,null,null,{"$f":"SUM(T103:AA103)","v":6}]
[91,null,null,null,null,null,null,null,null,null,"C2","C3",null,null,"D2","D3",null,{"$f":"IF(AND(Tabella1[[#This Row],[C2]]=$C$7,Tabella1[[#This Row],[C3]]=$C$5,Tabella1[[#This Row],[D2]]=$A$7,Tabella1[[#This Row],[D3]]=$A$5),1,\"\")","v":1},null,1,1,1,1,1,1,null,null,null,null,{"$f":"SUM(T104:AA104)","v":6}]
[92,null,null,null,null,null,null,null,null,null,"C2","C3",null,null,"D2","D3",null,{"$f":"IF(AND(Tabella1[[#This Row],[C2]]=$C$7,Tabella1[[#This Row],[C3]]=$C$5,Tabella1[[#This Row],[D2]]=$A$7,Tabella1[[#This Row],[D3]]=$A$5),1,\"\")","v":1},null,1,1,1,1,1,1,1,1,null,null,{"$f":"SUM(T105:AA105)","v":8}]
[93,null,null,null,null,null,null,null,null,null,"C2","C3",null,null,"D2","D3",null,{"$f":"IF(AND(Tabella1[[#This Row],[C2]]=$C$7,Tabella1[[#This Row],[C3]]=$C$5,Tabella1[[#This Row],[D2]]=$A$7,Tabella1[[#This Row],[D3]]=$A$5),1,\"\")","v":1},null,1,1,1,1,1,null,null,null,null,null,{"$f":"SUM(T106:AA106)","v":5}]
[94,null,null,null,null,"B1","B2",null,null,"C1","C2","C3",null,null,"D2","D3",null,{"$f":"IF(AND(Tabella1[[#This Row],[B1]]=$E$9,Tabella1[[#This Row],[B2]]=$E$7,Tabella1[[#This Row],[C1]]=$C$9,Tabella1[[#This Row],[C2]]=$C$7,Tabella1[[#This Row],[C3]]=$C$5,Tabella1[[#This Row],[D2]]=$A$7,Tabella1[[#This Row],[D3]]=$A$5),1,\"\")","v":1},null,1,1,1,null,null,null,null,null,null,null,{"$f":"SUM(T107:AA107)","v":3}]
[95,null,null,null,null,null,null,null,null,null,"C2","C3",null,null,"D2","D3",null,{"$f":"IF(AND(Tabella1[[#This Row],[C2]]=$C$7,Tabella1[[#This Row],[C3]]=$C$5,Tabella1[[#This Row],[D2]]=$A$7,Tabella1[[#This Row],[D3]]=$A$5),1,\"\")","v":1},null,1,1,1,1,1,null,null,null,null,null,{"$f":"SUM(T108:AA108)","v":5}]
[96,null,null,null,null,null,null,null,null,null,"C2","C3",null,null,"D2","D3",null,{"$f":"IF(AND(Tabella1[[#This Row],[C2]]=$C$7,Tabella1[[#This Row],[C3]]=$C$5,Tabella1[[#This Row],[D2]]=$A$7,Tabella1[[#This Row],[D3]]=$A$5),1,\"\")","v":1},null,1,1,1,1,1,1,null,null,null,null,{"$f":"SUM(T109:AA109)","v":6}]
[97,null,null,null,null,null,"B2",null,null,null,"C2","C3",null,null,null,null,null,{"$f":"IF(AND(Tabella1[[#This Row],[B2]]=$E$7,Tabella1[[#This Row],[C2]]=$C$7,Tabella1[[#This Row],[C3]]=$C$5),1,\"\")","v":1},null,1,1,1,1,1,null,null,null,null,null,{"$f":"SUM(T110:AA110)","v":5}]
[98,null,null,null,null,null,null,null,null,null,"C2","C3",null,null,null,null,null,{"$f":"IF(AND(Tabella1[[#This Row],[C2]]=$C$7,Tabella1[[#This Row],[C3]]=$C$5),1,\"\")","v":1},null,1,1,1,1,1,null,null,null,null,null,{"$f":"SUM(T111:AA111)","v":5}]
[99,null,null,null,null,null,null,"B3",null,null,"C2","C3",null,null,null,null,null,{"$f":"IF(AND(Tabella1[[#This Row],[B3]]=$E$5,Tabella1[[#This Row],[C2]]=$C$7,Tabella1[[#This Row],[C3]]=$C$5),1,\"\")","v":1},null,1,1,1,1,1,null,null,null,null,null,{"$f":"SUM(T112:AA112)","v":5}]
[100,null,null,null,null,null,null,null,null,null,null,null,"C4",null,"D2","D3","D4",{"$f":"IF(AND(Tabella1[[#This Row],[C4]]=$C$3,Tabella1[[#This Row],[D2]]=$A$7,Tabella1[[#This Row],[D3]]=$A$5,Tabella1[[#This Row],[D4]]=$A$3),1,\"\")","v":1},"REGNO DI INGHILTERRA",1,1,1,1,null,null,null,null,null,null,{"$f":"SUM(T113:AA113)","v":4}]
[101,null,null,null,null,null,null,null,null,null,null,"C3","C4",null,"D2","D3","D4",{"$f":"IF(AND(Tabella1[[#This Row],[C3]]=$C$5,Tabella1[[#This Row],[C4]]=$C$3,Tabella1[[#This Row],[D2]]=$A$7,Tabella1[[#This Row],[D3]]=$A$5,Tabella1[[#This Row],[D4]]=$A$3),1,\"\")","v":1},null,1,1,1,null,null,null,null,null,null,null,{"$f":"SUM(T114:AA114)","v":3}]
[102,null,null,null,null,null,null,null,null,null,"C2","C3",null,null,"D2","D3","D4",{"$f":"IF(AND(Tabella1[[#This Row],[C2]]=$C$7,Tabella1[[#This Row],[C3]]=$C$5,Tabella1[[#This Row],[D2]]=$A$7,Tabella1[[#This Row],[D3]]=$A$5,Tabella1[[#This Row],[D4]]=$A$3),1,\"\")","v":1},null,1,1,1,1,1,null,null,null,null,null,{"$f":"SUM(T115:AA115)","v":5}]
[103,null,null,null,null,null,null,null,null,null,null,"C3",null,null,"D2","D3","D4",{"$f":"IF(AND(Tabella1[[#This Row],[C3]]=$C$5,Tabella1[[#This Row],[D2]]=$A$7,Tabella1[[#This Row],[D3]]=$A$5,Tabella1[[#This Row],[D4]]=$A$3),1,\"\")","v":1},null,1,1,1,null,null,null,null,null,null,null,{"$f":"SUM(T116:AA116)","v":3}]
[104,null,null,null,null,null,null,null,null,null,null,"C3",null,null,"D2","D3","D4",{"$f":"IF(AND(Tabella1[[#This Row],[C3]]=$C$5,Tabella1[[#This Row],[D2]]=$A$7,Tabella1[[#This Row],[D3]]=$A$5,Tabella1[[#This Row],[D4]]=$A$3),1,\"\")","v":1},null,1,1,1,null,null,null,null,null,null,null,{"$f":"SUM(T117:AA117)","v":3}]
[105,null,null,null,null,null,null,null,null,null,null,"C3","C4",null,"D2","D3","D4",{"$f":"IF(AND(Tabella1[[#This Row],[C3]]=$C$5,Tabella1[[#This Row],[C4]]=$C$3,Tabella1[[#This Row],[D2]]=$A$7,Tabella1[[#This Row],[D3]]=$A$5,Tabella1[[#This Row],[D4]]=$A$3),1,\"\")","v":1},null,1,1,1,null,null,null,null,null,null,null,{"$f":"SUM(T118:AA118)","v":3}]
[106,null,null,null,null,null,null,null,null,null,null,"C3","C4",null,"D2","D3","D4",{"$f":"IF(AND(Tabella1[[#This Row],[C3]]=$C$5,Tabella1[[#This Row],[C4]]=$C$3,Tabella1[[#This Row],[D2]]=$A$7,Tabella1[[#This Row],[D3]]=$A$5,Tabella1[[#This Row],[D4]]=$A$3),1,\"\")","v":1},null,1,1,1,null,null,null,null,null,null,null,{"$f":"SUM(T119:AA119)","v":3}]

{"sheet":"GRIGLIA","index":1,"n_rows":8,"n_cols":4,"rows_kept":8,"cut":false,"hidden":false,"merged":[]}
[]
["A1","B1","C1","D1"]
[]
["A2","B2","C2","D2"]
[]
["A3","B3","C3","D3"]
[]
["A4","B4","C4","D4"]